bitfinex/quotes_SOLUSD_20260302
["timestamp","ask_amount","ask_price","bid_price","bid_amount"]
[1772466601105,8.16400803,88.56,88.528,0.93722228]
[1772466601307,8.16400803,88.55,88.528,0.93722228]
[1772466602196,3.69383402,88.57,88.528,0.93722228]
[1772466602197,8.16400803,88.54,88.528,0.93722228]
[1772466602711,219.04230527,89.093,88.528,2.25614128]
[1772466602918,8.16400803,88.56,88.529,1.318919]
[1772466603087,8.97956294,88.641,88.532,1.318919]
[1772466603293,8.16400803,88.6,88.54,1.318919]
[1772466603501,56.4097209,88.638,88.54,1.318919]
[1772466603703,3.69383402,88.635,88.54,1.318919]
[1772466603905,56.4097209,88.638,88.54,1.318919]
[1772466604102,8.16400803,88.6,88.54,1.318919]
[1772466604595,8.16400803,88.6,88.542,1.318919]
[1772466605107,8.16400803,88.61,88.55,1.318919]
[1772466605905,95.89999322,88.634,88.541,96.00072281]
[1772466605906,3.69383402,88.627,88.56,1.318919]
[1772466606410,39.49491644,88.619,88.561,11.29165208]
[1772466606608,8.16400803,88.61,88.562,1.318919]
[1772466606914,39.49491644,88.619,88.562,1.318919]
[1772466606915,3.69383402,88.616,88.562,1.318919]
[1772466607117,8.16400803,88.61,88.562,1.318919]
[1772466607315,0.14216157,88.615,88.562,1.318919]
[1772466607701,39.49491644,88.619,88.562,1.318919]
[1772466607903,8.16400803,88.64,88.567,0.28432314]
[1772466608107,19.95164109,88.727,88.577,0.28432314]
[1772466608108,8.16400803,88.65,88.577,0.28432314]
[1772466608302,8.16400803,88.66,88.59,1.318919]
[1772466608617,8.16400803,88.63,88.59,1.318919]
[1772466608813,8.16400803,88.63,88.591,12.60674733]
[1772466609120,8.16400803,88.63,88.592,1.318919]
[1772466609625,8.16400803,88.65,88.592,1.318919]
[1772466610105,8.16400803,88.65,88.6,1.318919]
[1772466610520,8.16400803,88.65,88.602,1.318919]
[1772466611019,3.69383402,88.687,88.602,1.318919]
[1772466611217,8.16400803,88.68,88.612,1.318919]
[1772466611422,0.2,88.69,88.63,1.318919]
[1772466611423,8.36400803,88.69,88.63,1.318919]
[1772466611723,8.36400803,88.69,88.601,39.50294013]
[1772466611724,0.2,88.69,88.64,1.318919]
[1772466612210,8.36400803,88.69,88.65,1.318919]
[1772466612526,8.16400803,88.66,88.611,1.318919]
[1772466612897,8.16400803,88.67,88.611,1.318919]
[1772466613112,3.97815716,88.686,88.613,1.318919]
[1772466613314,8.16400803,88.68,88.631,1.318919]
[1772466613497,0.2,88.69,88.646,0.28432314]
[1772466613707,0.2,88.69,88.633,4.82477569]
[1772466613708,0.2,88.69,88.651,1.318919]
[1772466614118,8.16400803,88.68,88.61,95.9259677]
[1772466614419,1.24023082,88.669,88.61,39.49892787]
[1772466614617,8.16400803,88.67,88.593,8.51860971]
[1772466614917,9.40423885,88.68,88.594,0.14216157]
[1772466615121,9.40423885,88.68,88.598,3.69383402]
[1772466615299,8.16400803,88.65,88.598,0.14216157]
[1772466615624,8.16400803,88.65,88.593,4.82477569]
[1772466616214,8.16400803,88.65,88.598,1.23182438]
[1772466616618,1.24023082,88.659,88.605,0.14216157]
[1772466616925,8.16400803,88.66,88.61,1.23182438]
[1772466617220,8.16400803,88.67,88.61,1.23182438]
[1772466617717,8.16400803,88.64,88.61,1.23182438]
[1772466617908,8.16400803,88.62,88.593,12.48404815]
[1772466618103,8.16400803,88.63,88.593,12.48404815]
[1772466618424,8.16400803,88.61,88.575,1.19652931]
[1772466618721,1.2023766,88.62,88.576,11.28973988]
[1772466618722,8.16400803,88.6,88.576,11.28973988]
[1772466618915,3.69383402,88.64,88.576,11.28973988]
[1772466618916,1.2023766,88.642,88.577,1.19652931]
[1772466619122,8.16400803,88.63,88.581,1.19652931]
[1772466619618,1.2023766,88.675,88.596,1.48085245]
[1772466619821,1.2023766,88.679,88.611,0.14216157]
[1772466620028,1.2023766,88.679,88.62,1.19652931]
[1772466620320,8.16400803,88.67,88.62,1.19652931]
[1772466620817,1.2023766,88.679,88.622,1.19652931]
[1772466621921,1.2023766,88.669,88.622,1.19652931]
[1772466622318,8.16400803,88.68,88.622,1.19652931]
[1772466622710,1.2023766,88.679,88.622,1.19652931]
[1772466622912,1.2023766,88.679,88.624,1.19652931]
[1772466623214,8.16400803,88.64,88.603,1.19652931]
[1772466623520,8.16400803,88.64,88.565,3.69383402]
[1772466623728,1.2023766,88.649,88.567,1.19652931]
[1772466623907,8.16400803,88.64,88.576,1.19652931]
[1772466624219,1.2023766,88.639,88.576,1.19652931]
[1772466624412,9.36638463,88.66,88.585,4.82477569]
[1772466624605,9.36638463,88.66,88.6,1.19652931]
[1772466625005,8.16400803,88.65,88.602,1.19652931]
[1772466625201,1.2023766,88.658,88.602,1.19652931]
[1772466625401,9.36638463,88.66,88.602,1.19652931]
[1772466625821,8.16400803,88.67,88.606,1.19652931]
[1772466626019,8.16400803,88.67,88.601,39.50294013]
[1772466626020,8.16400803,88.67,88.61,1.19652931]
[1772466626214,8.16400803,88.66,88.61,1.19652931]
[1772466626415,1.2023766,88.669,88.61,1.19652931]
[1772466626624,11.27662693,88.679,88.613,0.14216157]
[1772466626826,11.27662693,88.679,88.62,1.19652931]
[1772466627030,1.2023766,88.659,88.621,39.49402511]
[1772466627330,1.2023766,88.659,88.621,12.48053648]
[1772466627706,3.89383402,88.69,88.626,1.48085245]
[1772466628214,1.2023766,88.689,88.628,1.48085245]
[1772466628412,15.16918876,88.69,88.628,1.48085245]
[1772466628413,9.36638463,88.68,88.628,1.48085245]
[1772466628907,9.36638463,88.68,88.63,1.19652931]
[1772466629239,11.27662693,88.679,88.632,1.19652931]
[1772466630007,0.2,88.69,88.64,1.19652931]
[1772466630202,1.2023766,88.689,88.64,1.19652931]
[1772466630725,11.47525073,88.69,88.64,1.19652931]
[1772466630914,1.2023766,88.679,88.64,1.19652931]
[1772466631107,0.2,88.69,88.642,1.19652931]
[1772466631327,0.2,88.69,88.65,1.19652931]
[1772466632028,0.2,88.69,88.657,0.28432314]
[1772466632029,1e-08,88.69,88.657,0.28432314]
[1772466632334,1e-08,88.69,88.66,1.19652931]
[1772466633031,1e-08,88.69,88.662,1.19652931]
[1772466634628,1e-08,88.69,88.664,1.19652931]
[1772466635328,1.2023766,88.728,88.664,1.19652931]
[1772466635532,1.2023766,88.725,88.664,1.19652931]
[1772466635708,1.2023766,88.725,88.67,1.19652931]
[1772466635910,0.2,88.74,88.68,1.19652931]
[1772466636110,0.2,88.74,88.7,1.19652931]
[1772466636530,0.2,88.74,88.666,3.69383402]
[1772466636531,1.2023766,88.739,88.701,11.27383005]
[1772466636705,19.63289724,88.74,88.6,17.7110678]
[1772466636706,1.2023766,88.729,88.691,1.19652931]
[1772466636906,0.2,88.74,88.692,1.19652931]
[1772466637110,0.2,88.74,88.7,1.19652931]
[1772466637509,0.2,88.75,88.7,0.28432314]
[1772466637708,0.2,88.75,88.701,1.19652931]
[1772466638331,1.2023766,88.749,88.701,1.19652931]
[1772466638630,1.2023766,88.749,88.703,1.19652931]
[1772466639726,0.2,88.75,88.703,1.19652931]
[1772466640127,1.2023766,88.772,88.711,1.19652931]
[1772466640341,1.2023766,88.772,88.702,95.82647516]
[1772466640342,1.2023766,88.772,88.721,1.19652931]
[1772466640834,1.2023766,88.772,88.723,1.19652931]
[1772466641235,3.69383402,88.78,88.723,1.19652931]
[1772466641538,1.2023766,88.779,88.723,1.19652931]
[1772466642613,3.69383402,88.792,88.712,12.46896144]
[1772466642614,8.16400803,88.75,88.712,12.46896144]
[1772466642813,1.2023766,88.749,88.701,1.19652931]
[1772466644018,8.16400803,88.76,88.701,1.19652931]
[1772466644519,8.16400803,88.76,88.699,28.18512887]
[1772466644520,1.2023766,88.807,88.727,1.19652931]
[1772466644713,1.2023766,88.809,88.738,1.48085245]
[1772466645535,8.16400803,88.82,88.738,1.48085245]
[1772466645715,11.25885227,88.819,88.738,1.48085245]
[1772466645913,19.42278923,88.82,88.738,1.48085245]
[1772466646335,1.2023766,88.809,88.744,1.19652931]
[1772466646636,20.62516583,88.82,88.747,1.48085245]
[1772466646833,12.4611578,88.82,88.747,1.48085245]
[1772466647011,1.2023766,88.809,88.747,1.19652931]
[1772466647635,1.23971916,88.819,88.753,1.19102788]
[1772466648634,1.23971916,88.817,88.755,1.19102788]
[1772466649545,1.23971916,88.799,88.755,1.19102788]
[1772466650929,1.23971916,88.799,88.757,1.19102788]
[1772466651520,9.40372719,88.81,88.757,1.19102788]
[1772466651721,1.23971916,88.81,88.757,1.19102788]
[1772466652417,1.23971916,88.799,88.757,1.19102788]
[1772466652829,1.5240423,88.826,88.759,1.19102788]
[1772466653033,1.23971916,88.819,88.759,1.19102788]
[1772466653933,1.23971916,88.799,88.758,39.43306518]
[1772466655039,39.40287753,88.826,88.758,1.19102788]
[1772466655040,9.40372719,88.82,88.758,1.19102788]
[1772466655223,8.16400803,88.81,88.758,1.19102788]
[1772466655540,1.23971916,88.809,88.758,1.19102788]
[1772466656635,1.23971916,88.799,88.758,1.19102788]
[1772466656837,1.23971916,88.789,88.734,1.19102788]
[1772466657034,1.23971916,88.779,88.734,1.19102788]
[1772466657719,3.69383402,88.797,88.734,1.19102788]
[1772466657920,1.23971916,88.805,88.734,1.19102788]
[1772466658131,9.40372719,88.8,88.734,1.19102788]
[1772466658436,1.23971916,88.799,88.734,1.19102788]
[1772466659140,8.12660278,88.77,88.735,11.26951033]
[1772466659338,1.23971916,88.769,88.735,11.26951033]
[1772466659539,1.23971916,88.783,88.736,1.19102788]
[1772466660042,8.12660278,88.8,88.736,1.19102788]
[1772466660239,1.23971916,88.799,88.736,1.19102788]
[1772466660741,8.12660278,88.81,88.742,1.19102788]
[1772466660939,8.12660278,88.81,88.744,1.19102788]
[1772466661442,8.12660278,88.81,88.746,1.19102788]
[1772466661644,8.12660278,88.82,88.752,1.19102788]
[1772466661948,9.36632194,88.82,88.754,1.19102788]
[1772466662532,1.23971916,88.82,88.754,1.19102788]
[1772466662839,1.23971916,88.829,88.754,1.19102788]
[1772466663151,1.23971916,88.829,88.764,1.19102788]
[1772466663620,1.23971916,88.829,88.766,1.19102788]
[1772466664040,1.23971916,88.829,88.765,28.16425392]
[1772466664629,1.23971916,88.799,88.765,11.26570157]
[1772466664833,1.23971916,88.799,88.765,39.42995549]
[1772466665523,3.69383402,88.837,88.765,39.42995549]
[1772466665524,1.23971916,88.818,88.765,39.42995549]
[1772466665737,3.69383402,88.837,88.773,1.19102788]
[1772466665925,3.69383402,88.828,88.773,1.19102788]
[1772466666129,8.32660278,88.84,88.773,1.19102788]
[1772466666539,11.2563176,88.839,88.774,39.42595804]
[1772466666840,11.2563176,88.839,88.775,1.19102788]
[1772466666841,8.12660278,88.83,88.775,1.19102788]
[1772466667625,1.23971916,88.829,88.775,1.19102788]
[1772466667832,11.2563176,88.839,88.775,1.19102788]
[1772466667833,1.23971916,88.819,88.775,1.19102788]
[1772466668647,1.23971916,88.838,88.777,1.19102788]
[1772466668829,8.12660278,88.83,88.777,1.19102788]
[1772466669024,0.2,88.84,88.777,1.19102788]
[1772466669230,1.23971916,88.839,88.777,1.19102788]
[1772466669543,1.23971916,88.819,88.777,1.19102788]
[1772466671549,1.23971916,88.819,88.74,4.82477569]
[1772466671550,0.2,88.84,88.779,1.19102788]
[1772466672046,0.2,88.84,88.783,1.19102788]
[1772466672642,11.2563176,88.839,88.783,1.19102788]
[1772466673339,8.12660278,88.82,88.779,1.19102788]
[1772466673533,11.25657102,88.837,88.779,1.19102788]
[1772466674142,1.43971916,88.84,88.779,1.19102788]
[1772466674340,11.2563176,88.839,88.783,1.28274572]
[1772466674740,1.29911521,88.838,88.783,1.28274572]
[1772466675140,11.2563176,88.839,88.755,1.28274572]
[1772466675141,8.12660278,88.8,88.755,1.28274572]
[1772466675343,1.29911521,88.797,88.756,11.26684393]
[1772466675551,8.12660278,88.83,88.756,11.26684393]
[1772466675552,1e-08,88.84,88.759,1.28274572]
[1772466675762,1e-08,88.84,88.756,39.43395375]
[1772466675763,1.29911521,88.876,88.828,1.28274572]
[1772466676130,1.29911521,88.869,88.793,1.28274572]
[1772466676450,1.29911521,88.859,88.799,1.28274572]
[1772466676754,1.29911521,88.859,88.803,1.28274572]
[1772466676958,1.29911521,88.876,88.806,0.28432314]
[1772466677146,1.29911521,88.876,88.813,1.28274572]
[1772466677342,1.29911521,88.876,88.816,1.53252081]
[1772466677542,1.28744457,88.889,88.82,1.53252081]
[1772466677736,0.1,88.89,88.839,4.82477569]
[1772466677938,0.1,88.89,88.84,1.53252081]
[1772466678441,1e-08,88.9,88.85,1.53252081]
[1772466679238,1.28744457,88.899,88.85,1.24819767]
[1772466679559,1.28744457,88.879,88.819,39.40598295]
[1772466679986,1e-08,88.9,88.824,0.28432314]
[1772466680164,1e-08,88.9,88.824,1.41014498]
[1772466681457,1e-08,88.9,88.842,0.14216157]
[1772466681659,1e-08,88.9,88.857,0.14216157]
[1772466681863,1e-08,88.9,88.864,1.24431696]
[1772466683759,1e-08,88.9,88.841,1.12560642]
[1772466683953,1.28744457,88.899,88.843,1.24781917]
[1772466685044,8.12660278,88.89,88.842,39.39578126]
[1772466685243,1.28744457,88.879,88.842,11.2559375]
[1772466685843,1.28744457,88.879,88.842,28.13984376]
[1772466686045,1.28744457,88.879,88.832,11.25720461]
[1772466686759,1.28744457,88.879,88.833,1.24819767]
[1772466687267,1.28744457,88.893,88.843,1.24819767]
[1772466687969,1.28744457,88.893,88.845,1.24819767]
[1772466688148,1.28744457,88.889,88.83,39.40110322]
[1772466688348,1.28744457,88.879,88.83,11.25745806]
[1772466688549,1.28744457,88.849,88.749,1.24819767]
[1772466688748,1.28744457,88.849,88.751,1.24819767]
[1772466688954,1.28744457,88.839,88.753,1.24819767]
[1772466689254,1.28744457,88.849,88.762,1.53252081]
[1772466689562,1.28744457,88.849,88.769,1.24819767]
[1772466689764,1.28744457,88.849,88.763,1.12659554]
[1772466689765,1.28744457,88.849,88.771,1.24819767]
[1772466690073,1.28744457,88.849,88.778,4.82477569]
[1772466690274,1.28744457,88.849,88.79,1.53252081]
[1772466690567,1.28744457,88.864,88.795,4.82477569]
[1772466690770,1e-08,88.9,88.81,1.24819767]
[1772466690771,1.28744457,88.876,88.81,1.24819767]
[1772466690947,1.28744457,88.876,88.796,1.12617685]
[1772466690948,1.28744457,88.876,88.817,5.10909883]
[1772466691149,1.28744457,88.899,88.83,1.53252081]
[1772466691349,1.28744457,88.889,88.832,1.53252081]
[1772466691781,1.28744457,88.879,88.812,1.53252081]
[1772466691961,1.28744457,88.879,88.814,1.53252081]
[1772466693650,1.28744457,88.879,88.825,1.24819767]
[1772466693851,1.28744457,88.879,88.834,39.39932907]
[1772466694048,1.28744457,88.879,88.834,40.64752674]
[1772466694252,1.28744457,88.879,88.835,1.24819767]
[1772466694770,8.12660279,88.9,88.835,0.28432314]
[1772466694771,1.28744457,88.891,88.835,0.28432314]
[1772466695073,1.28744457,88.889,88.835,1.24819767]
[1772466696082,8.12660278,88.89,88.811,1.12598664]
[1772466696083,1.28744457,88.887,88.837,1.24819767]
[1772466696870,1.28744457,88.887,88.839,1.24819767]
[1772466697075,1.28744457,88.879,88.837,1.24819767]
[1772466697278,1.28744457,88.879,88.829,11.25750869]
[1772466697490,1.28744457,88.869,88.829,11.25750869]
[1772466697773,1.28744457,88.869,88.813,0.28432314]
[1772466697978,1.28744457,88.869,88.814,1.24819767]
[1772466698282,1.28744457,88.867,88.815,39.40775769]
[1772466699149,1.28744457,88.867,88.73,0.2]
[1772466699150,1.28744457,88.849,88.804,39.4124355]
[1772466699351,1.28744457,88.849,88.804,11.26075402]
[1772466699763,1.28744457,88.839,88.78,28.1594126]
[1772466699982,1.28744457,88.829,88.78,11.26379815]
[1772466700169,8.12660278,88.82,88.767,1.12654477]
[1772466700366,1.28744457,88.809,88.758,39.43306518]
[1772466700577,39.40199036,88.828,88.706,1.12731945]
[1772466700578,1.28744457,88.799,88.733,39.44417521]
[1772466700882,1.28744457,88.789,88.733,39.44417521]
[1772466701263,1.28744457,88.789,88.735,1.24819767]
[1772466701668,1.28744457,88.789,88.737,1.24819767]
[1772466701872,1.28744457,88.789,88.733,39.44417521]
[1772466702163,1.28744457,88.787,88.733,11.26976434]
[1772466702564,1.28744457,88.779,88.731,11.27001837]
[1772466702777,1.28744457,88.779,88.731,39.44506429]
[1772466702971,1.28744457,88.779,88.732,0.14216157]
[1772466703169,1.28744457,88.779,88.717,1.12717968]
[1772466703385,39.41974139,88.788,88.679,1.24819767]
[1772466703386,1.28744457,88.729,88.679,1.24819767]
[1772466703576,1.28744457,88.729,88.603,9.23967742]
[1772466703577,1.28744457,88.729,88.681,1.24819767]
[1772466704075,1.28744457,88.729,88.644,3.69383402]
[1772466704076,1.28744457,88.759,88.685,1.24819767]
[1772466704284,1.28744457,88.759,88.689,1.24819767]
[1772466704576,1.28744457,88.759,88.714,1.24819767]
[1772466704776,1.28744457,88.759,88.717,0.28432314]
[1772466704979,1.28744457,88.759,88.724,1.24819767]
[1772466705361,1.28744457,88.759,88.718,1.12716697]
[1772466705563,1.28744457,88.759,88.719,1.24819767]
[1772466706175,1.28744457,88.749,88.695,1.12745927]
[1772466706462,1.28744457,88.739,88.684,1.24819767]
[1772466706662,1.28744457,88.729,88.668,1.24819767]
[1772466707069,1.28744457,88.729,88.669,3.69383402]
[1772466707272,1.28744457,88.699,88.664,3.69383402]
[1772466707490,1.28744457,88.699,88.669,3.69383402]
[1772466707666,1.23082389,88.689,88.669,3.69383402]
[1772466707865,1.23082389,88.689,88.65,0.2]
[1772466708166,1.23082389,88.679,88.65,0.2]
[1772466708370,1.23082389,88.669,88.621,1.3129337]
[1772466708982,1.23082389,88.669,88.622,11.28387984]
[1772466709184,0.28411289,88.669,88.622,11.28387984]
[1772466709484,11.27548259,88.688,88.627,1.3129337]
[1772466709688,11.27548259,88.688,88.633,1.3129337]
[1772466710387,11.27548259,88.688,88.635,1.3129337]
[1772466710569,28.16615779,88.759,88.638,0.28432314]
[1772466710771,3.69383402,88.756,88.649,1.3129337]
[1772466710975,8.12660278,88.72,88.653,1.3129337]
[1772466711186,8.12660278,88.72,88.663,1.3129337]
[1772466711387,8.12660278,88.73,88.669,1.3129337]
[1772466711687,8.12660278,88.73,88.643,3.69383402]
[1772466711688,0.47928199,88.757,88.694,1.3129337]
[1772466711868,1.12717968,88.752,88.694,1.3129337]
[1772466712187,1.12717968,88.752,88.696,1.3129337]
[1772466712368,0.48146548,88.749,88.698,1.3129337]
[1772466712769,11.26685748,88.756,88.698,1.3129337]
[1772466713067,11.26685748,88.756,88.699,1.3129337]
[1772466713284,0.48264618,88.754,88.699,1.3129337]
[1772466713484,0.48264618,88.752,88.699,1.3129337]
[1772466713685,28.1656903,88.761,88.697,39.46018466]
[1772466713686,11.2659554,88.763,88.703,1.3129337]
[1772466713866,0.48264618,88.762,88.705,1.3129337]
[1772466714476,0.48361113,88.759,88.706,11.27319459]
[1772466714679,0.48361113,88.757,88.706,11.27319459]
[1772466714882,0.48361113,88.749,88.706,11.27319459]
[1772466715079,0.48375702,88.748,88.706,11.27319459]
[1772466715369,0.48375702,88.739,88.692,11.27497406]
[1772466715569,0.48375702,88.739,88.692,39.46240922]
[1772466715790,0.48375702,88.739,88.692,40.77534292]
[1772466715980,0.48375702,88.739,88.692,11.27497406]
[1772466716182,0.48390122,88.729,88.682,1.12762454]
[1772466716373,0.48390122,88.725,88.68,12.5894201]
[1772466716573,11.27065347,88.726,88.67,0.64402018]
[1772466716574,0.48390122,88.709,88.67,0.64402018]
[1772466716772,8.12660278,88.69,88.643,11.28120663]
[1772466716981,8.12660278,88.69,88.643,12.63295785]
[1772466717869,8.12660278,88.69,88.643,1.35175122]
[1772466718076,8.12660278,88.68,88.612,1.35175122]
[1772466718490,11.2778987,88.669,88.618,1.35175122]
[1772466718883,11.27662693,88.679,88.618,1.35175122]
[1772466719190,39.46819426,88.679,88.618,1.35175122]
[1772466719391,8.12660278,88.67,88.618,1.35175122]
[1772466719780,8.12660278,88.67,88.613,11.28502589]
[1772466719781,8.12660278,88.66,88.613,11.28502589]
[1772466720175,8.12660278,88.66,88.614,1.35175122]
[1772466720569,8.15126436,88.67,88.616,1.35175122]
[1772466721091,39.46863933,88.678,88.61,0.2]
[1772466721092,8.15126436,88.64,88.61,0.2]
[1772466721276,8.15126436,88.63,88.61,0.2]
[1772466721590,8.15126436,88.64,88.61,0.2]
[1772466721795,3.69383402,88.657,88.611,11.2852806]
[1772466721979,3.69383402,88.657,88.612,1.35175122]
[1772466722586,8.15126436,88.65,88.61,0.2]
[1772466722889,8.15126436,88.64,88.61,0.2]
[1772466723192,39.47843348,88.656,88.612,1.35175122]
[1772466723780,39.47843348,88.656,88.614,1.35175122]
[1772466723781,11.27955242,88.656,88.614,1.35175122]
[1772466724001,8.15126436,88.67,88.614,1.35175122]
[1772466724497,8.15126436,88.66,88.614,1.35175122]
[1772466724698,11.27917075,88.659,88.616,1.35175122]
[1772466724891,8.15126436,88.65,88.616,1.35175122]
[1772466725092,11.27917075,88.659,88.616,1.35175122]
[1772466725587,8.15126436,88.64,88.61,0.2]
[1772466725985,8.15126436,88.64,88.595,11.28729468]
[1772466725986,8.15126436,88.63,88.573,1.35175122]
[1772466726494,0.28432314,88.655,88.573,1.35175122]
[1772466726692,8.15126436,88.62,88.575,1.35175122]
[1772466726895,8.15126436,88.62,88.574,11.2899948]
[1772466727094,8.15126436,88.62,88.575,1.35175122]
[1772466727283,8.15126436,88.61,88.562,1.35175122]
[1772466727487,8.15126436,88.6,88.562,1.35175122]
[1772466727692,1.40954657,88.681,88.508,0.56733314]
[1772466727693,11.27751714,88.672,88.576,1.35175122]
[1772466727886,1.40970554,88.671,88.593,0.28432314]
[1772466728086,8.15126436,88.65,88.606,1.35175122]
[1772466728400,8.15126436,88.64,88.593,1.35175122]
[1772466728702,39.48600502,88.639,88.593,1.35175122]
[1772466728903,8.15126436,88.63,88.593,1.35175122]
[1772466729101,11.28171572,88.639,88.594,11.2874461]
[1772466729287,11.28171572,88.639,88.595,1.35175122]
[1772466729598,8.15126436,88.62,88.571,12.64212843]
[1772466729896,8.15126436,88.62,88.572,1.35175122]
[1772466730094,8.15126436,88.63,88.572,1.35175122]
[1772466730306,8.15126436,88.62,88.572,1.35175122]
[1772466730515,8.15126436,88.61,88.56,1.35175122]
[1772466730798,11.2868091,88.599,88.561,11.29165208]
[1772466731012,8.15126436,88.59,88.547,1.35175122]
[1772466731213,39.50383186,88.599,88.553,11.29265062]
[1772466731385,39.50383186,88.599,88.512,3.69383402]
[1772466731386,11.2868091,88.599,88.561,11.29165208]
[1772466731584,11.28553532,88.609,88.561,39.52078228]
[1772466731904,11.28438095,88.619,88.57,1.45175122]
[1772466732103,11.28311594,88.628,88.572,1.35175122]
[1772466732310,1.4104054,88.627,88.572,1.35175122]
[1772466732996,1.4104054,88.627,88.576,1.35175122]
[1772466733199,8.15126436,88.67,88.597,0.14216157]
[1772466733391,1.40973733,88.669,88.602,1.35175122]
[1772466733705,8.15126436,88.68,88.612,1.35175122]
[1772466733897,1.40957836,88.679,88.614,1.35175122]
[1772466734097,8.15126436,88.68,88.614,1.35175122]
[1772466734399,1.40945121,88.687,88.622,1.35175122]
[1772466734594,1.40945121,88.687,88.624,1.35175122]
[1772466734902,39.46418906,88.688,88.632,1.35175122]
[1772466734903,11.27548259,88.688,88.632,1.35175122]
[1772466735094,36.33963808,88.69,88.634,1.35175122]
[1772466735288,8.15126436,88.68,88.615,1.63607436]
[1772466735502,8.15126436,88.66,88.616,1.35175122]
[1772466736002,1.40989634,88.659,88.616,1.35175122]
[1772466736199,8.15126436,88.68,88.616,1.35175122]
[1772466736381,1.40943532,88.688,88.622,1.35175122]
[1772466736586,8.15126436,88.68,88.622,1.35175122]
[1772466736782,8.15126436,88.68,88.624,1.35175122]
[1772466736986,39.46819426,88.679,88.625,11.28349788]
[1772466737180,39.46819426,88.679,88.623,0.56526885]
[1772466737181,8.15126436,88.66,88.626,1.35175122]
[1772466737385,40.87777262,88.679,88.626,1.35175122]
[1772466737601,8.15126436,88.66,88.614,1.35175122]
[1772466737792,8.15126436,88.65,88.602,1.35175122]
[1772466737996,8.15126436,88.65,88.572,39.51587409]
[1772466737997,8.15126436,88.63,88.59,1.35175122]
[1772466738297,1.41037357,88.629,88.59,1.35175122]
[1772466738493,8.15126436,88.62,88.577,1.35175122]
[1772466739087,11.28426184,88.619,88.579,12.64110874]
[1772466739395,11.28426184,88.619,88.58,1.35175122]
[1772466740198,1.4104054,88.627,88.58,1.35175122]
[1772466740386,11.281843,88.638,88.58,1.35175122]
[1772466740707,1.41024628,88.637,88.588,1.35175122]
[1772466741202,11.26785955,88.748,88.604,1.35175122]
[1772466741382,11.26785955,88.748,88.589,40.92142254]
[1772466741383,8.15126436,88.69,88.628,1.35175122]
[1772466741585,0.84471055,88.689,88.63,1.63607436]
[1772466742095,0.84471055,88.699,88.63,1.63607436]
[1772466742296,8.15126436,88.73,88.639,1.63607436]
[1772466742504,8.15126436,88.67,88.612,1.35175122]
[1772466742699,5.8901568,88.738,88.621,5.10909883]
[1772466742903,8.15126436,88.69,88.63,1.63607436]
[1772466743204,11.27548259,88.688,88.632,1.63607436]
[1772466743414,39.46418906,88.688,88.632,1.63607436]
[1772466743803,11.27548259,88.688,88.639,1.35175122]
[1772466744512,8.15126436,88.65,88.601,1.35175122]
[1772466744703,1.41005538,88.649,88.601,1.35175122]
[1772466744910,8.15126436,88.64,88.572,0.84839948]
[1772466745207,8.15126436,88.64,88.571,39.51632023]
[1772466745208,8.15126436,88.63,88.573,1.35175122]
[1772466745414,11.28298863,88.629,88.575,1.35175122]
[1772466745791,11.28298863,88.629,88.579,1.35175122]
[1772466745997,11.281843,88.638,88.579,1.35175122]
[1772466746210,39.4864505,88.638,88.579,1.35175122]
[1772466746604,8.15126436,88.62,88.572,1.35175122]
[1772466746905,3.69383402,88.635,88.572,1.35175122]
[1772466746906,8.15126436,88.63,88.572,1.35175122]
[1772466747108,8.15126436,88.63,88.576,1.35175122]
[1772466747307,8.15126436,88.63,88.58,1.35175122]
[1772466747308,39.49046022,88.629,88.58,1.35175122]
[1772466747693,28.20121011,88.649,88.588,1.35175122]
[1772466747913,8.15126436,88.64,88.588,1.35175122]
[1772466748113,1.41007129,88.648,88.588,1.35175122]
[1772466748413,8.15126436,88.64,88.588,1.35175122]
[1772466748716,8.15126436,88.63,88.588,1.35175122]
[1772466748890,8.15126436,88.62,88.577,11.28961242]
[1772466749293,39.77077364,88.638,88.553,11.29267218]
[1772466749509,8.15126436,88.62,88.558,1.35175122]
[1772466749814,8.15126436,88.6,88.558,1.35175122]
[1772466750107,8.15126436,88.61,88.57,1.45175122]
[1772466750305,8.15126436,88.62,88.57,1.45175122]
[1772466751207,8.15126436,88.59,88.57,0.1]
[1772466751409,8.15126436,88.6,88.57,0.1]
[1772466751596,8.15126436,88.61,88.57,1.45175122]
[1772466751798,28.21168421,88.616,88.57,1.45175122]
[1772466752199,8.15126436,88.61,88.57,0.1]
[1772466752796,28.21168421,88.616,88.57,0.1]
[1772466752797,8.15126436,88.6,88.57,0.1]
[1772466753110,28.21168421,88.616,88.57,1.45175122]
[1772466753311,8.15126436,88.61,88.57,1.45175122]
[1772466753695,8.15126436,88.62,88.571,1.35175122]
[1772466753895,1.41053273,88.619,88.57,0.1]
[1772466754111,1.41053273,88.619,88.571,1.35175122]
[1772466754308,1.41053273,88.619,88.572,1.35175122]
[1772466755519,39.49580779,88.617,88.573,11.29012227]
[1772466755719,8.15126436,88.61,88.573,11.29012227]